[Event "9th RTU Rapid 2019"]
[Site "Riga"]
[Date "2019.08.04"]
[Round "9.22"]
[White "Bracker, Arne"]
[Black "Vaskevicius, Augustas"]
[Result "0-1"]
[ECO "C67"]
[WhiteElo "2227"]
[BlackElo "2022"]
[Annotator "NA"]
[PlyCount "67"]
[EventDate "2019.08.05"]
[EventType "swiss"]
[EventCountry "LAT"]
[SourceTitle "playchess.com"]
[Source "ChessBase"]
[SourceQuality "1"]
[TimeControl "5400+30"]

1. e4 {[%emt 1:15:23]} e5 {[%emt 1:15:21]} 2. Nf3 {[%emt 0:00:28]} Nc6 {[%emt 0:00:26]} 3. Bb5 {[%emt 0:01:12]} Nf6 {[%emt 0:00:26]} 4. O-O {[%emt 0:00:39]} Nxe4 {[%emt 0:00:28]} 5. Re1 {[%emt 0:00:31]} Nd6 {[%emt 0:00:26]} 6. Nxe5 {[%emt 0:00:31]} Be7 {[%emt 0:00:27]} 7. Bf1 {[%emt 0:00:29]} Nxe5 {[%emt 0:00:44]} 8. Rxe5 {[%emt 0:00:28]} O-O {[%emt 0:00:28]} 9. d4 {[%emt 0:01:11]} Bf6 {[%emt 0:00:27]} 10. Re1 {[%emt 0:00:28]} Nf5 {[%emt 0:00:29]} 11. d5 {[%emt 0:01:10]} Re8 {[%emt 0:02:53]} 12. Rxe8+ {[%emt 0:00:34]} Qxe8 {[%emt 0:00:27]} 13. Qd3 {[%emt 0:00:32]} d6 {[%emt 0:02:08]} 14. Nd2 {[%emt 0:00:42]} Bg5 {[%emt 0:01:33]} 15. Nf3 {[%emt 0:02:05]} Bxc1 {[%emt 0:01:19]} 16. Rxc1 {[%emt 0:00:26]} Bd7 {[%emt 0:01:15]} 17. Re1 {[%emt 0:02:01]} Qd8 {[%emt 0:00:39]} 18. g4 {[%emt 0:02:16]} Nh4 {[%emt 0:01:19]} 19. h3 {[%emt 0:00:57]} Nxf3+ {[%emt 0:01:40]} 20. Qxf3 {[%emt 0:00:27]} Qg5 {[%emt 0:00:40]} 21. Bd3 {[%emt 0:01:09]} g6 {[%emt 0:01:45]} 22. Re4 {[%emt 0:04:26]} h5 {[%emt 0:02:31]} 23. Qf4 {[%emt 0:01:44]} Qxf4 {[%emt 0:01:12]} 24. Rxf4 {[%emt 0:00:27]} hxg4 {[%emt 0:00:38]} 25. hxg4 {[%emt 0:00:27]} c5 {[%emt 0:01:41]} 26. dxc6 {[%emt 0:00:37]} bxc6 {[%emt 0:00:36]} 27. c4 {[%emt 0:00:57]} Be6 {[%emt 0:01:07]} 28. Rd4 {[%emt 0:01:11]} Rd8 {[%emt 0:00:42]} 29. b3 {[%emt 0:00:36]} c5 {[%emt 0:00:32]} 30. Rf4 {[%emt 0:00:48]} Kg7 {[%emt 0:00:32]} 31. g5 {[%emt 0:00:10]} d5 {[%emt 0:00:02]} 32. cxd5 {[%emt 0:00:01]} Rxd5 {[%emt 0:00:05]} 33. Bc4 Rxg5+ {[%emt 0:00:04]} 34. Kf1 0-1

[Event "9th RTU Rapid 2019"]
[Site "Riga"]
[Date "2019.08.04"]
[Round "9.23"]
[White "Zhukov, Anton"]
[Black "Damen, Jip"]
[Result "0-1"]
[ECO "A40"]
[WhiteElo "2087"]
[BlackElo "2179"]
[Annotator "NA"]
[PlyCount "150"]
[EventDate "2019.08.05"]
[EventType "swiss"]
[EventCountry "LAT"]
[SourceTitle "playchess.com"]
[Source "ChessBase"]
[SourceQuality "1"]
[TimeControl "5400+30"]

1. d4 {[%emt 1:15:21]} g6 {[%emt 1:15:23]} 2. c4 {[%emt 0:00:26]} Bg7 {[%emt 0:00:25]} 3. e4 {[%emt 0:00:27]} Nc6 {[%emt 0:00:27]} 4. Be3 {[%emt 0:00:31]} e5 {[%emt 0:00:30]} 5. d5 {[%emt 0:00:27]} Nd4 {[%emt 0:00:26]} 6. Ne2 {[%emt 0:00:32]} c5 {[%emt 0:00:27]} 7. Nbc3 {[%emt 0:00:56]} d6 {[%emt 0:00:29]} 8. Qd2 {[%emt 0:00:32]} Ne7 {[%emt 0:00:31]} 9. f3 {[%emt 0:00:35]} a6 {[%emt 0:00:31]} 10. Bh6 {[%emt 0:00:32]} Bxh6 {[%emt 0:00:29]} 11. Qxh6 {[%emt 0:00:03]} Nc2+ 12. Kd1 {[%emt 0:00:55]} Nxa1 {[%emt 0:00:52]} 13. Qc1 {[%emt 0:00:28]} b5 {[%emt 0:00:33]} 14. Qxa1 {[%emt 0:00:30]} b4 {[%emt 0:00:29]} 15. Nb1 {[%emt 0:00:34]} O-O {[%emt 0:00:46]} 16. Nd2 {[%emt 0:00:27]} f5 {[%emt 0:00:26]} 17. Qc1 {[%emt 0:00:37]} Qa5 {[%emt 0:00:32]} 18. Qb1 {[%emt 0:00:36]} g5 {[%emt 0:00:45]} 19. Ng3 {[%emt 0:00:42]} f4 {[%emt 0:00:37]} 20. Ne2 {[%emt 0:00:30]} Ng6 {[%emt 0:00:27]} 21. Nc1 {[%emt 0:00:45]} h5 {[%emt 0:00:28]} 22. Nd3 {[%emt 0:00:30]} Ra7 {[%emt 0:00:32]} 23. Nf2 {[%emt 0:00:38]} Rg7 {[%emt 0:00:27]} 24. h3 {[%emt 0:00:34]} Nh4 {[%emt 0:00:53]} 25. Ke1 {[%emt 0:00:45]} Qd8 {[%emt 0:00:27]} 26. Qd1 {[%emt 0:00:31]} Qa5 {[%emt 0:00:29]} 27. Qb1 {[%emt 0:00:47]} Rf6 {[%emt 0:00:26]} 28. Rh2 {[%emt 0:00:30]} Rh6 {[%emt 0:00:27]} 29. Be2 {[%emt 0:00:30]} b3 {[%emt 0:00:56]} 30. axb3 {[%emt 0:00:29]} Rb7 {[%emt 0:00:27]} 31. Kd1 {[%emt 0:00:33]} Bd7 {[%emt 0:00:38]} 32. Kc2 {[%emt 0:00:29]} Qb6 {[%emt 0:00:38]} 33. Nd1 {[%emt 0:00:42]} Rf6 {[%emt 0:00:46]} 34. Nc3 {[%emt 0:00:32]} Rf8 {[%emt 0:00:26]} 35. Qe1 {[%emt 0:00:59]} Qd8 {[%emt 0:00:48]} 36. Qf2 {[%emt 0:00:46]} Qf6 {[%emt 0:00:31]} 37. Rh1 {[%emt 0:00:49]} Ng6 {[%emt 0:00:34]} 38. Ra1 {[%emt 0:00:35]} Rb6 {[%emt 0:00:26]} 39. Na4 {[%emt 0:00:12]} Rb7 40. Nc3 {[%emt 0:00:53]} Ra8 {[%emt 0:00:51]} 41. Qf1 {[%emt 0:00:50]} g4 {[%emt 0:00:43]} 42. fxg4 {[%emt 0:00:42]} hxg4 {[%emt 0:00:26]} 43. Bxg4 {[%emt 0:00:27]} Bxg4 {[%emt 0:00:26]} 44. hxg4 {[%emt 0:00:27]} Qg5 {[%emt 0:00:29]} 45. Qe2 {[%emt 0:00:28]} Rg7 {[%emt 0:00:58]} 46. Rh1 {[%emt 0:00:36]} Nf8 {[%emt 0:00:56]} 47. Qe1 {[%emt 0:01:17]} Qxg4 {[%emt 0:00:32]} 48. Rh2 {[%emt 0:00:27]} Raa7 {[%emt 0:00:43]} 49. Nd1 {[%emt 0:01:04]} Rh7 {[%emt 0:00:34]} 50. Rh1 {[%emt 0:00:35]} Rag7 {[%emt 0:00:36]} 51. Rg1 {[%emt 0:00:46]} Rh2 {[%emt 0:00:35]} 52. Nf2 {[%emt 0:00:29]} Qg6 {[%emt 0:00:31]} 53. Nf3 {[%emt 0:01:49]} Rxg2 {[%emt 0:00:35]} 54. Rf1 {[%emt 0:00:30]} Qg3 {[%emt 0:00:40]} 55. Nd2 {[%emt 0:00:45]} Qe3 {[%emt 0:00:28]} 56. Nd1 {[%emt 0:00:31]} Qxe1 {[%emt 0:00:54]} 57. Rxe1 {[%emt 0:00:27]} Rg1 {[%emt 0:00:27]} 58. Re2 {[%emt 0:00:30]} R7g2 {[%emt 0:00:27]} 59. Kd3 {[%emt 0:00:28]} Rxe2 {[%emt 0:00:30]} 60. Kxe2 {[%emt 0:00:27]} Nh7 {[%emt 0:00:33]} 61. b4 {[%emt 0:00:31]} cxb4 {[%emt 0:00:29]} 62. Nf2 {[%emt 0:00:26]} a5 {[%emt 0:00:59]} 63. c5 {[%emt 0:00:27]} dxc5 {[%emt 0:00:27]} 64. Nc4 {[%emt 0:00:26]} a4 {[%emt 0:00:49]} 65. d6 {[%emt 0:00:27]} Nf6 {[%emt 0:00:37]} 66. Nd3 {[%emt 0:00:27]} Rg2+ {[%emt 0:00:44]} 67. Kf3 {[%emt 0:00:27]} Rg3+ {[%emt 0:00:40]} 68. Ke2 {[%emt 0:00:27]} a3 {[%emt 0:00:43]} 69. bxa3 {[%emt 0:00:27]} bxa3 {[%emt 0:00:25]} 70. Nxa3 {[%emt 0:00:59]} Re3+ {[%emt 0:00:32]} 71. Kd2 {[%emt 0:00:26]} Nxe4+ {[%emt 0:00:27]} 72. Kc2 {[%emt 0:00:26]} Re2+ {[%emt 0:00:49]} 73. Kb3 {[%emt 0:00:32]} Nxd6 {[%emt 0:00:33]} 74. Nxc5 {[%emt 0:00:42]} f3 {[%emt 0:00:27]} 75. Nd3 {[%emt 0:00:34]} e4 {[%emt 0:00:34]} 0-1

[Event "9th RTU Rapid 2019"]
[Site "Riga"]
[Date "2019.08.04"]
[Round "9.24"]
[White "Martinkus, Rolandas"]
[Black "Hasani, Takin"]
[Result "1-0"]
[ECO "A13"]
[WhiteElo "2155"]
[BlackElo "1849"]
[Annotator "NA"]
[PlyCount "77"]
[EventDate "2019.08.05"]
[EventType "swiss"]
[EventCountry "LAT"]
[SourceTitle "playchess.com"]
[Source "ChessBase"]
[SourceQuality "1"]
[TimeControl "5400+30"]

1. Nf3 {[%emt 1:15:22]} Nf6 {[%emt 1:15:20]} 2. e3 {[%emt 0:00:27]} e6 {[%emt 0:00:29]} 3. c4 {[%emt 0:00:26]} d5 {[%emt 0:00:31]} 4. Nc3 {[%emt 0:00:28]} Be7 {[%emt 0:00:31]} 5. b3 {[%emt 0:00:36]} O-O {[%emt 0:00:29]} 6. Bb2 {[%emt 0:00:25]} c5 {[%emt 0:00:26]} 7. d4 {[%emt 0:00:33]} cxd4 {[%emt 0:00:49]} 8. exd4 {[%emt 0:00:30]} b6 {[%emt 0:00:38]} 9. Be2 {[%emt 0:00:37]} Bb7 {[%emt 0:00:29]} 10. O-O {[%emt 0:00:27]} Nbd7 {[%emt 0:00:43]} 11. Rc1 {[%emt 0:01:01]} Rc8 {[%emt 0:00:54]} 12. Ne5 {[%emt 0:00:46]} dxc4 {[%emt 0:01:25]} 13. Bxc4 {[%emt 0:00:39]} Bd6 {[%emt 0:01:45]} 14. Re1 {[%emt 0:00:36]} Re8 {[%emt 0:01:10]} 15. Qe2 {[%emt 0:00:27]} Nd5 {[%emt 0:01:41]} 16. Nxf7 {[%emt 0:01:33]} Kxf7 {[%emt 0:01:02]} 17. Qh5+ {[%emt 0:00:45]} Kg8 {[%emt 0:00:45]} 18. Nxd5 {[%emt 0:00:30]} Bxd5 {[%emt 0:01:28]} 19. Bxd5 {[%emt 0:00:31]} Rxc1 {[%emt 0:01:15]} 20. Bxc1 {[%emt 0:01:17]} Nf6 {[%emt 0:00:39]} 21. Rxe6 {[%emt 0:00:36]} Kf8 {[%emt 0:03:25]} 22. Rxe8+ {[%emt 0:01:06]} Qxe8 {[%emt 0:00:39]} 23. Qxe8+ {[%emt 0:00:33]} Kxe8 {[%emt 0:00:26]} 24. Bf3 {[%emt 0:00:33]} Ke7 {[%emt 0:00:39]} 25. h3 {[%emt 0:00:29]} Ke6 {[%emt 0:00:36]} 26. Kf1 {[%emt 0:00:28]} Bb4 {[%emt 0:01:13]} 27. Ke2 {[%emt 0:00:40]} b5 {[%emt 0:00:36]} 28. Bd2 {[%emt 0:01:03]} Bd6 {[%emt 0:00:42]} 29. Kd3 {[%emt 0:00:40]} h6 {[%emt 0:00:51]} 30. b4 {[%emt 0:01:16]} Nd5 {[%emt 0:01:05]} 31. a3 {[%emt 0:00:26]} Be7 {[%emt 0:00:54]} 32. g3 {[%emt 0:00:54]} Bf6 {[%emt 0:00:39]} 33. Bd1 {[%emt 0:00:43]} Nb6 {[%emt 0:01:12]} 34. Bb3+ {[%emt 0:00:35]} Kd6 {[%emt 0:00:38]} 35. Bf4+ {[%emt 0:00:38]} Kc6 {[%emt 0:00:26]} 36. Be5 {[%emt 0:00:35]} Nd7 {[%emt 0:00:55]} 37. f4 {[%emt 0:01:01]} a6 {[%emt 0:00:32]} 38. d5+ {[%emt 0:00:35]} Kb6 {[%emt 0:00:29]} 39. Ke4 {[%emt 0:00:37]} 1-0

[Event "9th RTU Rapid 2019"]
[Site "Riga"]
[Date "2019.08.04"]
[Round "9.25"]
[White "Sertbay, Huseyin"]
[Black "Petrovskis, Olegs"]
[Result "0-1"]
[ECO "D10"]
[WhiteElo "2066"]
[BlackElo "2147"]
[Annotator "NA"]
[PlyCount "112"]
[EventDate "2019.08.05"]
[EventType "swiss"]
[EventCountry "LAT"]
[SourceTitle "playchess.com"]
[Source "ChessBase"]
[SourceQuality "1"]
[TimeControl "5400+30"]

1. d4 {[%emt 1:15:22]} d5 {[%emt 1:15:20]} 2. c4 {[%emt 0:00:26]} c6 {[%emt 0:00:26]} 3. cxd5 {[%emt 0:00:26]} cxd5 {[%emt 0:00:26]} 4. Bg5 {[%emt 0:00:26]} Nc6 {[%emt 0:00:28]} 5. Nc3 {[%emt 0:00:26]} Qb6 {[%emt 0:01:24]} 6. e4 {[%emt 0:00:27]} e6 {[%emt 0:01:05]} 7. exd5 {[%emt 0:02:36]} exd5 {[%emt 0:00:26]} 8. Bb5 {[%emt 0:00:35]} Be6 {[%emt 0:01:30]} 9. Nge2 {[%emt 0:01:04]} h6 {[%emt 0:01:13]} 10. Bh4 {[%emt 0:00:30]} Bd6 {[%emt 0:00:31]} 11. Qb3 {[%emt 0:01:29]} a6 {[%emt 0:01:21]} 12. Ba4 {[%emt 0:00:33]} Qxb3 {[%emt 0:00:44]} 13. Bxb3 {[%emt 0:00:26]} Nge7 {[%emt 0:00:28]} 14. Bg3 {[%emt 0:01:43]} O-O-O {[%emt 0:02:16]} 15. Rc1 {[%emt 0:00:39]} Kb8 {[%emt 0:00:34]} 16. O-O {[%emt 0:00:32]} Na5 {[%emt 0:01:01]} 17. Nf4 {[%emt 0:02:14]} Nxb3 {[%emt 0:00:57]} 18. axb3 {[%emt 0:00:27]} Nf5 {[%emt 0:01:27]} 19. Nxe6 {[%emt 0:01:17]} fxe6 {[%emt 0:01:00]} 20. Rcd1 {[%emt 0:01:40]} Bxg3 {[%emt 0:00:36]} 21. hxg3 {[%emt 0:00:26]} h5 {[%emt 0:00:27]} 22. Rfe1 {[%emt 0:00:27]} Rd6 {[%emt 0:00:39]} 23. Re5 {[%emt 0:00:29]} Rc8 {[%emt 0:00:41]} 24. f3 {[%emt 0:02:18]} Nxg3 {[%emt 0:01:11]} 25. Rg5 {[%emt 0:00:27]} h4 {[%emt 0:01:18]} 26. Rxg7 {[%emt 0:00:45]} Rb6 {[%emt 0:00:47]} 27. Re7 {[%emt 0:02:50]} Nf5 {[%emt 0:00:37]} 28. Rf7 {[%emt 0:00:59]} Rxb3 {[%emt 0:00:50]} 29. Rd2 {[%emt 0:00:31]} Nd6 {[%emt 0:00:59]} 30. Rh7 {[%emt 0:01:15]} Nc4 {[%emt 0:00:27]} 31. Re2 {[%emt 0:00:27]} Nxb2 {[%emt 0:01:29]} 32. Na2 {[%emt 0:00:26]} Nd3 {[%emt 0:01:50]} 33. Rxh4 {[%emt 0:00:32]} a5 {[%emt 0:00:46]} 34. g4 {[%emt 0:00:57]} a4 {[%emt 0:00:32]} 35. g5 {[%emt 0:00:48]} a3 {[%emt 0:00:55]} 36. g6 {[%emt 0:00:38]} Rg8 {[%emt 0:00:26]} 37. Rg4 {[%emt 0:00:31]} Rb1+ {[%emt 0:00:35]} 38. Kg2 {[%emt 0:00:36]} Rb2 {[%emt 0:00:26]} 39. Kf1 {[%emt 0:00:30]} Rb1+ {[%emt 0:00:47]} 40. Kg2 {[%emt 0:00:25]} b5 {[%emt 0:00:28]} 41. g7 {[%emt 0:00:38]} b4 {[%emt 0:00:35]} 42. Rxe6 {[%emt 0:00:38]} Rb2+ {[%emt 0:00:41]} 43. Kg3 {[%emt 0:00:25]} b3 {[%emt 0:00:33]} 44. Rf6 {[%emt 0:00:31]} bxa2 {[%emt 0:00:29]} 45. Rf8+ {[%emt 0:00:26]} Ka7 {[%emt 0:00:29]} 46. Rxg8 {[%emt 0:00:29]} a1=Q {[%emt 0:00:26]} 47. Ra8+ {[%emt 0:00:27]} Kxa8 {[%emt 0:00:05]} 48. g8=Q+ {[%emt 0:00:27]} Ka7 {[%emt 0:00:56]} 49. Rg7+ {[%emt 0:00:26]} Ka6 {[%emt 0:00:33]} 50. Qa8+ {[%emt 0:00:27]} Kb5 {[%emt 0:00:27]} 51. Qxd5+ {[%emt 0:00:33]} Kb4 {[%emt 0:00:26]} 52. Rb7+ {[%emt 0:00:27]} Kc3 {[%emt 0:00:26]} 53. Rc7+ {[%emt 0:00:44]} Kd2 {[%emt 0:00:32]} 54. Qa5+ {[%emt 0:00:40]} Rb4 {[%emt 0:00:40]} 55. Qg5+ {[%emt 0:00:27]} Kd1 {[%emt 0:00:28]} 56. Qe3 {[%emt 0:00:27]} Qxd4 {[%emt 0:00:35]} 0-1

[Event "9th RTU Rapid 2019"]
[Site "Riga"]
[Date "2019.08.04"]
[Round "9.26"]
[White "Shailesh, Dravid"]
[Black "Jonsson, Gauti Pall"]
[Result "1-0"]
[ECO "B35"]
[WhiteElo "2134"]
[BlackElo "2080"]
[Annotator "NA"]
[PlyCount "63"]
[EventDate "2019.08.05"]
[EventType "swiss"]
[EventCountry "LAT"]
[SourceTitle "playchess.com"]
[Source "ChessBase"]
[SourceQuality "1"]
[TimeControl "5400+30"]

1. e4 {[%emt 1:15:22]} c5 {[%emt 1:15:23]} 2. Nf3 {[%emt 0:00:27]} g6 {[%emt 0:00:28]} 3. d4 {[%emt 0:00:26]} cxd4 {[%emt 0:00:28]} 4. Nxd4 {[%emt 0:00:26]} Bg7 {[%emt 0:00:28]} 5. Nc3 {[%emt 0:00:27]} Nc6 {[%emt 0:00:28]} 6. Be3 {[%emt 0:00:27]} Nf6 {[%emt 0:00:31]} 7. Bc4 {[%emt 0:00:27]} O-O {[%emt 0:00:34]} 8. Bb3 {[%emt 0:00:27]} a6 {[%emt 0:00:38]} 9. a4 {[%emt 0:00:57]} Qc7 {[%emt 0:00:51]} 10. O-O {[%emt 0:00:31]} Na5 {[%emt 0:01:28]} 11. Ba2 {[%emt 0:00:59]} Nc4 {[%emt 0:00:31]} 12. Bc1 {[%emt 0:00:27]} d6 {[%emt 0:01:24]} 13. Qe2 {[%emt 0:00:27]} Ne5 {[%emt 0:00:41]} 14. Bg5 {[%emt 0:00:27]} Qb6 {[%emt 0:00:41]} 15. Qd2 {[%emt 0:01:03]} Qb4 {[%emt 0:01:40]} 16. Rfd1 {[%emt 0:01:29]} Nc6 {[%emt 0:02:21]} 17. Nxc6 {[%emt 0:05:27]} bxc6 {[%emt 0:00:28]} 18. Bb3 {[%emt 0:00:57]} Be6 {[%emt 0:01:42]} 19. Bxf6 {[%emt 0:02:14]} Bxf6 {[%emt 0:01:10]} 20. Nd5 {[%emt 0:00:26]} Qxe4 {[%emt 0:00:51]} 21. Re1 {[%emt 0:00:27]} Qh4 {[%emt 0:01:28]} 22. g3 {[%emt 0:01:05]} Qg5 {[%emt 0:01:15]} 23. f4 {[%emt 0:00:35]} Qg4 {[%emt 0:01:16]} 24. Nxf6+ {[%emt 0:01:46]} exf6 {[%emt 0:00:26]} 25. Bxe6 {[%emt 0:00:32]} fxe6 {[%emt 0:00:26]} 26. Qxd6 {[%emt 0:00:26]} e5 {[%emt 0:00:46]} 27. fxe5 {[%emt 0:00:56]} Rad8 {[%emt 0:00:32]} 28. Qxc6 {[%emt 0:00:28]} fxe5 {[%emt 0:00:42]} 29. Rf1 {[%emt 0:00:33]} Qe2 {[%emt 0:01:08]} 30. Rae1 {[%emt 0:01:00]} Rxf1+ 31. Rxf1 {[%emt 0:00:26]} Rd1 {[%emt 0:01:45]} 32. Qe8+ {[%emt 0:00:27]} 1-0

[Event "9th RTU Rapid 2019"]
[Site "Riga"]
[Date "2019.08.04"]
[Round "9.27"]
[White "Smirnova, Ekaterina"]
[Black "Mamalis, Prokopios"]
[Result "1/2-1/2"]
[ECO "E11"]
[WhiteElo "2134"]
[BlackElo "1902"]
[Annotator "NA"]
[PlyCount "69"]
[EventDate "2019.08.05"]
[EventType "swiss"]
[EventCountry "LAT"]
[SourceTitle "playchess.com"]
[Source "ChessBase"]
[SourceQuality "1"]
[TimeControl "5400+30"]

1. d4 {[%emt 1:15:21]} e6 {[%emt 1:15:22]} 2. c4 {[%emt 0:00:27]} Nf6 {[%emt 0:00:26]} 3. Nf3 {[%emt 0:00:26]} Bb4+ {[%emt 0:00:25]} 4. Bd2 {[%emt 0:00:29]} c5 {[%emt 0:00:27]} 5. e3 {[%emt 0:01:07]} b6 {[%emt 0:01:02]} 6. Be2 {[%emt 0:01:37]} Bb7 {[%emt 0:00:45]} 7. O-O {[%emt 0:00:30]} O-O {[%emt 0:00:30]} 8. Nc3 {[%emt 0:00:34]} Bxc3 {[%emt 0:00:27]} 9. Bxc3 {[%emt 0:00:31]} d6 {[%emt 0:01:36]} 10. dxc5 {[%emt 0:01:12]} bxc5 {[%emt 0:00:37]} 11. Bxf6 {[%emt 0:00:57]} gxf6 {[%emt 0:00:51]} 12. Qd2 {[%emt 0:00:57]} Qe7 {[%emt 0:01:09]} 13. Rfd1 {[%emt 0:00:27]} d5 {[%emt 0:01:02]} 14. cxd5 {[%emt 0:00:38]} Bxd5 {[%emt 0:00:38]} 15. b3 {[%emt 0:00:42]} Nd7 {[%emt 0:01:01]} 16. Rac1 {[%emt 0:00:29]} Rfd8 {[%emt 0:01:12]} 17. Qc3 {[%emt 0:00:42]} Rac8 {[%emt 0:01:01]} 18. Nd2 {[%emt 0:01:31]} Nb6 {[%emt 0:01:44]} 19. Bf3 {[%emt 0:01:13]} Bxf3 {[%emt 0:01:02]} 20. Nxf3 {[%emt 0:00:26]} c4 {[%emt 0:01:15]} 21. bxc4 {[%emt 0:01:07]} Rxc4 {[%emt 0:00:55]} 22. Qb3 {[%emt 0:00:43]} Rdc8 {[%emt 0:01:35]} 23. Rxc4 {[%emt 0:00:30]} Rxc4 {[%emt 0:00:29]} 24. h3 {[%emt 0:00:37]} Qc7 {[%emt 0:02:09]} 25. Qb2 {[%emt 0:01:04]} Kg7 {[%emt 0:00:34]} 26. Nd4 {[%emt 0:00:31]} Nd5 {[%emt 0:01:45]} 27. Qd2 {[%emt 0:02:32]} Nc3 {[%emt 0:01:04]} 28. Re1 {[%emt 0:00:37]} Ne4 {[%emt 0:01:36]} 29. Qe2 {[%emt 0:00:35]} f5 {[%emt 0:00:36]} 30. Qb2 {[%emt 0:00:35]} Kg8 {[%emt 0:00:53]} 31. Rd1 {[%emt 0:02:53]} Nc3 {[%emt 0:00:55]} 32. Re1 {[%emt 0:00:51]} Ne4 {[%emt 0:00:27]} 33. Rd1 {[%emt 0:01:07]} Nc3 {[%emt 0:00:28]} 34. Re1 {[%emt 0:00:27]} Ne4 {[%emt 0:00:28]} 35. Rd1 1/2-1/2

[Event "9th RTU Rapid 2019"]
[Site "Riga"]
[Date "2019.08.04"]
[Round "9.28"]
[White "Nair, Sanjeev"]
[Black "Alvarado Ascanio, Francisco"]
[Result "0-1"]
[ECO "C05"]
[WhiteElo "1841"]
[BlackElo "2166"]
[Annotator "NA"]
[PlyCount "111"]
[EventDate "2019.08.05"]
[EventType "swiss"]
[EventCountry "LAT"]
[SourceTitle "playchess.com"]
[Source "ChessBase"]
[SourceQuality "1"]
[TimeControl "5400+30"]

1. e4 {[%emt 1:15:22]} e6 {[%emt 1:15:20]} 2. d4 {[%emt 0:00:29]} d5 {[%emt 0:00:27]} 3. Nd2 {[%emt 0:00:27]} Nd7 {[%emt 0:00:29]} 4. e5 {[%emt 0:00:52]} c5 {[%emt 0:00:31]} 5. c3 {[%emt 0:00:26]} Ne7 {[%emt 0:00:26]} 6. Ngf3 {[%emt 0:00:29]} Nc6 {[%emt 0:00:29]} 7. Be2 {[%emt 0:01:06]} cxd4 {[%emt 0:00:46]} 8. cxd4 {[%emt 0:00:26]} Qb6 {[%emt 0:00:30]} 9. Qa4 {[%emt 0:02:03]} Be7 {[%emt 0:01:34]} 10. O-O {[%emt 0:00:40]} O-O {[%emt 0:00:28]} 11. Rd1 {[%emt 0:01:30]} f6 {[%emt 0:00:37]} 12. exf6 {[%emt 0:00:36]} Nxf6 {[%emt 0:01:09]} 13. Nf1 {[%emt 0:01:29]} Bd7 {[%emt 0:00:50]} 14. Qb3 {[%emt 0:03:25]} Qxb3 {[%emt 0:01:58]} 15. axb3 {[%emt 0:00:27]} Bd6 {[%emt 0:00:33]} 16. Be3 {[%emt 0:00:51]} a6 {[%emt 0:00:36]} 17. Rdc1 {[%emt 0:00:59]} Rfc8 {[%emt 0:01:15]} 18. Ng3 {[%emt 0:01:04]} Nb4 {[%emt 0:01:34]} 19. Rc3 {[%emt 0:00:46]} Nc2 {[%emt 0:02:16]} 20. Rc1 {[%emt 0:02:22]} Nxe3 {[%emt 0:00:28]} 21. fxe3 {[%emt 0:00:26]} Bxg3 {[%emt 0:02:22]} 22. hxg3 {[%emt 0:00:46]} Ne4 {[%emt 0:02:33]} 23. Rxc8+ {[%emt 0:00:48]} Rxc8 {[%emt 0:00:27]} 24. Rxc8+ {[%emt 0:00:31]} Bxc8 {[%emt 0:00:26]} 25. Kh2 {[%emt 0:00:48]} a5 {[%emt 0:00:26]} 26. Bd3 {[%emt 0:00:33]} Nf6 {[%emt 0:00:58]} 27. Ne5 {[%emt 0:00:28]} Nd7 {[%emt 0:00:35]} 28. Nf3 {[%emt 0:00:39]} h6 {[%emt 0:00:37]} 29. g4 {[%emt 0:00:27]} g5 {[%emt 0:00:33]} 30. Kg3 {[%emt 0:00:28]} Kg7 {[%emt 0:00:36]} 31. Kf2 {[%emt 0:00:48]} Kf6 {[%emt 0:00:41]} 32. Bb5 {[%emt 0:00:25]} Nf8 {[%emt 0:00:37]} 33. Ne5 {[%emt 0:01:00]} Ng6 {[%emt 0:00:32]} 34. Nd3 {[%emt 0:00:26]} b6 {[%emt 0:00:34]} 35. b4 {[%emt 0:00:29]} e5 {[%emt 0:01:22]} 36. Be8 {[%emt 0:00:27]} exd4 {[%emt 0:00:40]} 37. exd4 {[%emt 0:01:28]} Bxg4 {[%emt 0:00:52]} 38. Bxg6 {[%emt 0:00:31]} Kxg6 {[%emt 0:00:26]} 39. Ne5+ {[%emt 0:00:38]} Kf5 {[%emt 0:00:27]} 40. Ke3 {[%emt 0:00:26]} axb4 {[%emt 0:00:52]} 41. Nd3 {[%emt 0:01:10]} b3 {[%emt 0:00:40]} 42. Ne5 {[%emt 0:00:37]} h5 {[%emt 0:00:37]} 43. Nd7 {[%emt 0:00:35]} b5 {[%emt 0:00:30]} 44. Nc5 {[%emt 0:00:31]} Bd1 {[%emt 0:00:29]} 45. Nd3 {[%emt 0:00:34]} h4 {[%emt 0:00:50]} 46. Nb4 {[%emt 0:00:40]} Ke6 {[%emt 0:00:29]} 47. Kd2 {[%emt 0:00:26]} Bc2 {[%emt 0:00:36]} 48. Ke3 {[%emt 0:00:26]} Be4 {[%emt 0:00:35]} 49. Kf2 {[%emt 0:00:27]} g4 {[%emt 0:00:28]} 50. Nc6 {[%emt 0:00:34]} g3+ {[%emt 0:00:30]} 51. Kf1 {[%emt 0:00:30]} Bd3+ {[%emt 0:00:34]} 52. Kg1 {[%emt 0:00:26]} Kf5 {[%emt 0:00:32]} 53. Ne5 {[%emt 0:00:39]} Be4 {[%emt 0:00:31]} 54. Kf1 {[%emt 0:00:35]} Kf4 {[%emt 0:00:27]} 55. Nc6 {[%emt 0:00:47]} Ke3 {[%emt 0:00:32]} 56. Kg1 {[%emt 0:00:14]} 0-1

[Event "9th RTU Rapid 2019"]
[Site "Riga"]
[Date "2019.08.04"]
[Round "9.29"]
[White "Miedema, David"]
[Black "Melderis, Uldis"]
[Result "1-0"]
[ECO "C11"]
[WhiteElo "2313"]
[BlackElo "1897"]
[Annotator "NA"]
[PlyCount "77"]
[EventDate "2019.08.05"]
[EventType "swiss"]
[EventCountry "LAT"]
[SourceTitle "playchess.com"]
[Source "ChessBase"]
[SourceQuality "1"]
[TimeControl "5400+30"]

1. e4 {[%emt 1:15:21]} e6 {[%emt 1:15:21]} 2. d4 {[%emt 0:00:27]} d5 {[%emt 0:00:26]} 3. Nc3 {[%emt 0:00:27]} Nf6 {[%emt 0:00:26]} 4. e5 {[%emt 0:00:26]} Nfd7 {[%emt 0:00:27]} 5. f4 {[%emt 0:00:26]} c5 {[%emt 0:00:26]} 6. Nf3 {[%emt 0:00:27]} Nc6 {[%emt 0:00:27]} 7. Be3 {[%emt 0:00:27]} a6 {[%emt 0:00:37]} 8. Qd2 {[%emt 0:00:28]} b5 {[%emt 0:00:26]} 9. a3 {[%emt 0:00:26]} b4 {[%emt 0:00:33]} 10. axb4 {[%emt 0:00:30]} cxb4 {[%emt 0:00:26]} 11. Ne2 {[%emt 0:01:02]} a5 {[%emt 0:00:34]} 12. b3 {[%emt 0:00:26]} Ba6 {[%emt 0:00:29]} 13. g4 {[%emt 0:00:28]} Be7 {[%emt 0:01:07]} 14. f5 {[%emt 0:00:35]} Bh4+ {[%emt 0:00:35]} 15. Bf2 {[%emt 0:00:27]} Bxf2+ {[%emt 0:00:29]} 16. Kxf2 {[%emt 0:00:27]} h6 {[%emt 0:01:04]} 17. Bg2 {[%emt 0:00:45]} Bxe2 {[%emt 0:00:28]} 18. Kxe2 {[%emt 0:00:30]} Qb6 {[%emt 0:00:42]} 19. Qd3 {[%emt 0:01:21]} Qa6 {[%emt 0:00:32]} 20. Qxa6 {[%emt 0:00:31]} Rxa6 {[%emt 0:00:26]} 21. Ke3 {[%emt 0:00:27]} Ke7 {[%emt 0:00:33]} 22. Bf1 {[%emt 0:00:26]} Rb6 {[%emt 0:00:33]} 23. Bd3 {[%emt 0:00:27]} Ra8 {[%emt 0:01:37]} 24. h4 {[%emt 0:00:30]} exf5 {[%emt 0:00:38]} 25. gxf5 {[%emt 0:00:27]} a4 {[%emt 0:02:17]} 26. Rxa4 {[%emt 0:00:31]} Rxa4 {[%emt 0:00:27]} 27. bxa4 {[%emt 0:00:26]} b3 {[%emt 0:00:27]} 28. Bb5 {[%emt 0:00:47]} bxc2 {[%emt 0:00:31]} 29. Rc1 {[%emt 0:00:30]} Nb4 {[%emt 0:00:28]} 30. Ne1 {[%emt 0:00:27]} Rb8 {[%emt 0:00:36]} 31. Nxc2 {[%emt 0:00:37]} Rc8 {[%emt 0:00:29]} 32. Kd2 {[%emt 0:00:31]} Na2 {[%emt 0:00:44]} 33. Ra1 {[%emt 0:00:34]} Nc3 {[%emt 0:00:27]} 34. Nb4 {[%emt 0:00:38]} Ne4+ {[%emt 0:00:33]} 35. Ke3 {[%emt 0:00:32]} Rc3+ {[%emt 0:00:29]} 36. Kf4 {[%emt 0:00:29]} g5+ {[%emt 0:01:00]} 37. fxg6 {[%emt 0:00:27]} Ke6 {[%emt 0:00:39]} 38. Bxd7+ {[%emt 0:00:36]} Kxd7 {[%emt 0:00:29]} 39. gxf7 {[%emt 0:00:28]} 1-0